bitfinex-derivatives/quotes_ETHF0:USTF0_20260209
["timestamp","ask_amount","ask_price","bid_price","bid_amount"]
[1770680238440,7.38563058,2110.0,2108.9,38.23462202]
[1770680238945,7.38563058,2110.0,2109.0,7.57762202]
[1770680247247,7.47700084,2109.8,2109.0,7.57762202]
[1770680250346,0.00596394,2110.0,2109.0,13.20394893]
[1770680250347,10.30677679,2110.0,2109.0,13.20394893]
[1770680250551,7.48296478,2110.0,2109.2,8.11380078]
[1770680250746,0.00596394,2110.0,2109.2,10.81182833]
[1770680251053,0.00596394,2110.0,2109.3,8.11380078]
[1770680251451,10.30081285,2110.6,2109.6,8.11380078]
[1770680251646,4.19996953,2110.5,2109.8,8.11380078]
[1770680251850,4.19996953,2110.4,2109.8,8.11380078]
[1770680252550,0.00388849,2110.4,2109.8,8.11880277]
[1770680253348,7.48088933,2110.4,2109.8,8.11880277]
[1770680255050,7.48088933,2110.4,2109.8,0.00500199]
[1770680255947,7.47700084,2110.2,2109.8,0.00500199]
[1770680256153,7.47700084,2110.2,2109.4,8.11380078]
[1770680256550,7.47700084,2110.2,2109.3,38.76780078]
[1770680256749,7.47700084,2110.2,2109.4,8.11380078]
[1770680257142,7.47700084,2110.2,2109.4,8.1181246]
[1770680260061,0.00388849,2110.4,2109.1,8.11380078]
[1770680260062,7.47700084,2110.0,2109.1,8.11380078]
[1770680261057,7.47700084,2110.0,2109.1,8.11908275]
[1770680261556,7.47700084,2110.2,2109.1,8.11908275]
[1770680262953,7.48088933,2110.4,2109.4,8.11380078]
[1770680263156,0.00388849,2110.4,2109.6,8.11380078]
[1770680266556,2.82586928,2111.0,2109.6,8.11380078]
[1770680266759,17.73600084,2111.1,2109.6,8.11380078]
[1770680266760,7.47700084,2111.1,2110.2,8.11380078]
[1770680266963,7.47700084,2111.5,2110.4,8.11380078]
[1770680267264,4.18611076,2111.4,2110.5,8.11380078]
[1770680267465,7.47700084,2111.4,2110.5,8.11380078]
[1770680267765,7.48201884,2111.4,2110.5,8.11380078]
[1770680268569,1.23675757,2111.8,2110.3,30.652]
[1770680268570,8.71375841,2111.8,2110.8,8.11380078]
[1770680268770,8.71375841,2111.8,2111.0,8.11380078]
[1770680269670,8.71758555,2111.8,2111.0,8.11719285]
[1770680271664,9.12379384,2111.8,2111.0,8.11719285]
[1770680273880,9.12379384,2111.8,2110.1,11.45895691]
[1770680273881,7.88320913,2111.6,2110.3,7.68303364]
[1770680274762,7.88320913,2111.6,2110.3,7.95021218]
[1770680274962,7.88320913,2111.6,2110.3,7.95384255]
[1770680279270,7.88320913,2111.6,2110.5,7.68303364]
[1770680282574,7.88320913,2111.4,2110.3,7.95384255]
[1770680282963,7.88320913,2111.4,2110.3,0.27080891]
[1770680283167,7.88320913,2111.2,2110.3,0.00363037]
[1770680283972,7.88320913,2111.1,2110.3,0.00363037]
[1770680285776,7.88320913,2111.1,2109.9,30.64]
[1770680285777,7.88320913,2110.5,2109.5,7.68303364]
[1770680286177,7.88320913,2110.2,2109.1,7.68303364]
[1770680286380,7.88320913,2110.2,2109.1,7.94858052]
[1770680286566,7.88791525,2110.2,2109.1,7.95436747]
[1770680290582,7.88791525,2110.2,2109.2,7.68303364]
[1770680301289,7.82367821,2110.2,2109.2,7.68303364]
[1770680303684,7.81897209,2110.5,2109.4,7.86690491]
[1770680304701,7.82416749,2110.5,2109.4,7.86690491]
[1770680308696,7.81897209,2110.4,2109.1,5.63211386]
[1770680308999,7.81897209,2110.4,2108.6,0.27108436]
[1770680309000,10.46768143,2109.8,2108.6,0.27108436]
[1770680309200,7.64184761,2109.6,2108.5,7.86690491]
[1770680309500,7.64184761,2109.4,2108.5,7.86690491]
[1770680309899,7.64184761,2109.4,2108.5,7.87169479]
[1770680310399,7.64184761,2109.4,2108.5,8.13980339]
[1770680311501,7.64184761,2109.4,2108.5,7.87169479]
[1770680319604,7.81897209,2109.7,2108.5,7.87169479]
[1770680322410,7.81897209,2109.9,2108.5,8.10897479]
[1770680323005,7.81897209,2110.3,2109.0,7.86690491]
[1770680323208,7.81897209,2110.3,2109.1,7.86690491]
[1770680324103,7.82416749,2110.5,2109.1,7.86690491]
[1770680324913,0.0051954,2110.5,2109.2,7.86690491]
[1770680325217,0.0051954,2110.5,2109.4,7.86690491]
[1770680325512,7.81897209,2111.3,2110.0,7.86690491]
[1770680325712,7.81897209,2111.3,2110.1,7.86690491]
[1770680326308,7.82479864,2111.3,2110.1,7.87294709]
[1770680327107,2.82576428,2111.8,2110.1,7.87294709]
[1770680327108,7.81897209,2111.8,2110.5,7.86690491]
[1770680327304,7.81897209,2112.3,2110.9,7.86690491]
[1770680327517,7.81897209,2112.3,2111.1,7.86690491]
[1770680328204,7.82252717,2112.3,2111.1,7.86690491]
[1770680330120,7.82252717,2112.3,2110.5,8.33231813]
[1770680330712,8.21072376,2112.1,2110.5,8.33231813]
[1770680334819,8.14218059,2111.9,2110.5,8.33231813]
[1770680340618,8.14859849,2111.7,2110.2,8.33231813]
[1770680340819,8.14603154,2111.3,2110.1,8.33836031]
[1770680350136,8.195453,2111.1,2110.1,8.33836031]
[1770680354235,8.15782165,2110.9,2110.1,8.33836031]
[1770680356938,8.15782165,2110.9,2109.1,11.00598482]
[1770680356939,8.14556076,2110.3,2109.3,8.33231813]
[1770680357343,8.14551323,2110.1,2109.3,8.32730013]
[1770680357837,8.14551323,2110.1,2109.3,8.33182976]
[1770680357838,8.15065639,2110.1,2109.3,8.33182976]
[1770680360838,0.00514316,2110.1,2109.5,7.59631801]
[1770680367145,7.74791521,2110.1,2109.5,7.59631801]
[1770680371347,0.00514316,2110.1,2109.5,7.59631801]
[1770680371948,7.74791521,2110.1,2109.5,7.59631801]
[1770680376855,0.00514316,2110.1,2109.5,7.59631801]
[1770680377354,7.74277205,2110.4,2109.5,7.59631801]
[1770680378352,7.74834873,2110.4,2109.5,7.59631801]
[1770680381556,12.05481681,2110.3,2109.5,7.59631801]
[1770680381761,7.74277205,2110.3,2109.5,7.59631801]
[1770680382565,0.00557668,2110.4,2109.5,7.59631801]
[1770680382864,7.74834873,2110.4,2109.5,7.59631801]
[1770680384064,4.31732343,2110.3,2109.5,7.59631801]
[1770680384265,7.74834873,2110.4,2109.5,7.59631801]
[1770680384467,4.31732536,2110.3,2109.5,7.59631801]
[1770680384662,7.74834873,2110.4,2109.5,7.59631801]
[1770680384862,0.00557668,2110.4,2109.5,7.59631801]
[1770680385361,7.74834873,2110.4,2109.5,7.59631801]
[1770680386169,4.32271208,2110.3,2109.5,7.59631801]
[1770680386466,6.68e-06,2110.4,2109.8,2.69887779]
[1770680386671,6.68e-06,2110.4,2109.9,7.59631801]
[1770680386868,7.74277205,2110.8,2109.9,7.59631801]
[1770680387068,4.32330671,2110.7,2109.9,7.59631801]
[1770680387264,7.74277205,2110.8,2109.9,7.59631801]
[1770680387465,4.3213199,2110.7,2109.9,7.59631801]
[1770680387666,7.74277205,2110.8,2109.9,7.59631801]
[1770680387859,4.32131362,2110.7,2109.9,7.59631801]
[1770680388059,7.74813087,2110.8,2109.9,7.59631801]
[1770680388264,4.32031715,2110.7,2109.9,7.59631801]
[1770680388470,7.74813087,2110.8,2109.9,7.59631801]
[1770680388768,4.32031503,2110.7,2109.9,7.59631801]
[1770680388957,7.74813087,2110.8,2109.9,7.59631801]
[1770680389162,0.00535882,2110.8,2109.9,7.59631801]
[1770680392362,8.02298785,2110.8,2109.9,7.59631801]
[1770680392875,8.01762903,2110.6,2109.9,7.59631801]
[1770680401278,10.85091418,2110.8,2109.9,7.59631801]
[1770680401478,8.02298785,2110.8,2109.9,7.59631801]
[1770680407381,8.01762903,2110.6,2109.9,7.59631801]
[1770680408378,4.31774809,2110.5,2109.6,7.69493252]
[1770680408683,42.30378543,2110.8,2109.6,7.69493252]
[1770680408684,8.01762903,2110.6,2109.6,7.69493252]
[1770680410685,0.00535882,2110.8,2109.9,7.69493252]
[1770680410883,8.01762903,2111.2,2110.2,7.69493252]
[1770680411185,8.01762903,2111.1,2110.2,7.69493252]
[1770680411887,0.00389144,2111.1,2110.2,7.69493252]
[1770680415992,2.83097099,2111.7,2110.7,7.69493252]
[1770680416289,5.63878576,2112.0,2110.9,7.69493252]
[1770680416290,8.01762903,2111.8,2110.9,7.69493252]
[1770680416982,8.02169714,2111.8,2110.9,7.70002492]
[1770680418087,0.00406811,2111.8,2110.9,13.76739492]
[1770680418284,8.01762903,2112.3,2111.0,7.69493252]
[1770680419382,8.02329701,2112.3,2111.2,7.69493252]
[1770680429499,0.00566798,2112.3,2111.4,8.22819179]
[1770680429700,8.07513948,2112.5,2111.4,8.22819179]
[1770680430496,8.07513948,2112.5,2111.5,0.23694]
[1770680430698,8.07851672,2112.5,2111.6,8.22819179]
[1770680431089,0.00337724,2112.5,2111.6,8.22819179]
[1770680431298,8.02202064,2112.5,2111.6,8.22819179]
[1770680431499,8.02202064,2112.5,2111.6,8.49148867]
[1770680431890,0.00337724,2112.5,2111.7,0.23692]
[1770680432198,8.01788784,2113.1,2111.9,8.22819179]
[1770680432401,8.00046604,2113.3,2112.2,8.46505179]
[1770680432696,8.00046604,2113.5,2112.3,8.22819179]
[1770680433000,8.00489338,2113.5,2112.3,8.22819179]
[1770680433297,8.00489338,2113.5,2112.5,8.22819179]
[1770680433500,8.00489338,2113.5,2112.7,8.22819179]
[1770680433690,0.00442734,2113.5,2112.7,8.22819179]
[1770680434398,8.23296153,2114.4,2112.7,8.22819179]
[1770680434704,8.16790294,2114.4,2112.7,8.22819179]
[1770680435399,8.17126195,2114.4,2112.7,8.22819179]
[1770680435802,8.18979671,2114.2,2112.7,8.22819179]
[1770680436497,8.16217123,2114.0,2112.6,30.45919179]
[1770680437089,8.16217123,2114.0,2112.7,8.22819179]
[1770680437890,8.16143439,2113.8,2112.5,8.23157928]
[1770680440399,7.84709968,2113.2,2111.6,8.49148867]
[1770680440598,0.23674,2113.3,2111.6,8.49148867]
[1770680440599,7.84709968,2113.0,2111.6,8.49148867]
[1770680440797,7.84709968,2112.8,2111.6,8.49148867]
[1770680441394,7.85267261,2112.8,2111.6,8.49720851]
[1770680442403,7.85267261,2112.8,2111.6,8.23391163]
[1770680442599,7.80062943,2112.6,2111.6,8.23391163]
[1770680443394,7.80247094,2112.4,2111.6,8.23391163]
[1770680443605,7.80247094,2112.4,2111.2,8.22819179]
[1770680443805,7.7967511,2112.2,2111.2,8.22819179]
[1770680444502,7.7967511,2112.2,2110.7,8.22819179]
[1770680444503,7.70616442,2112.0,2110.7,8.22819179]
[1770680444696,7.70616442,2111.8,2110.8,8.22819179]
[1770680445595,7.70616442,2111.8,2110.8,8.23344359]
[1770680451312,7.87773604,2112.4,2111.0,8.22890106]
[1770680456509,7.97014876,2112.2,2111.0,8.22890106]
[1770680456901,7.97014876,2112.0,2111.0,8.22890106]
[1770680457212,7.97014876,2112.0,2110.8,8.23415286]
[1770680457724,7.97880973,2112.4,2111.3,8.22890106]
[1770680460315,8.01000227,2112.2,2110.9,8.22890106]
[1770680462719,8.16986571,2112.4,2110.9,8.22890106]
[1770680462916,2.83097099,2112.6,2111.1,8.22890106]
[1770680463111,8.18328994,2112.8,2111.3,8.22890106]
[1770680463417,8.17801635,2112.6,2111.3,8.22890106]
[1770680466519,8.20217634,2112.4,2111.3,8.22890106]
[1770680468814,2.83097099,2112.7,2111.6,8.22890106]
[1770680469016,8.22704469,2113.1,2111.8,8.22890106]
[1770680469611,1.16833944,2113.3,2111.8,8.22890106]
[1770680469612,9.39538413,2113.3,2111.8,8.22890106]
[1770680470021,9.39886103,2113.3,2111.8,8.22890106]
[1770680470524,8.23052159,2113.3,2111.8,8.22890106]
[1770680471122,8.23052159,2113.3,2111.7,2.6935827]
[1770680471123,8.23052159,2113.3,2112.0,8.22890106]
[1770680471624,0.0034769,2113.3,2112.2,8.22890106]
[1770680472424,8.23052159,2113.3,2112.2,8.22890106]
[1770680473820,8.23052159,2113.3,2112.0,8.22890106]
[1770680474120,8.22704469,2113.1,2112.0,8.22890106]
[1770680474526,8.22704469,2112.9,2111.6,8.22890106]
[1770680476531,8.22704469,2112.7,2111.6,8.22890106]
[1770680481821,7.71974072,2112.5,2111.6,8.22890106]
[1770680487123,7.71974072,2112.8,2111.6,8.22890106]
[1770680487326,42.29842661,2113.1,2111.6,8.22890106]
[1770680487327,12.02811513,2112.7,2111.6,8.22890106]
[1770680487622,7.71974072,2112.7,2111.6,8.22890106]
[1770680488525,7.71974072,2112.9,2111.6,8.22890106]
[1770680488724,4.29393054,2112.8,2111.6,8.22890106]
[1770680488925,7.71974072,2112.8,2111.6,8.22890106]
[1770680491126,7.71974072,2112.8,2111.8,7.67474293]
[1770680492835,4.29838174,2112.7,2111.8,7.67474293]
[1770680493133,7.71974072,2112.6,2111.8,7.67474293]
[1770680496037,7.71974072,2112.8,2111.8,7.67474293]
[1770680496239,7.71974072,2113.1,2112.0,7.67474293]
[1770680496429,4.30061451,2113.0,2112.0,7.67474293]
[1770680496630,7.71974072,2113.0,2112.0,7.67474293]
[1770680497936,7.71974072,2112.8,2112.0,7.67474293]
[1770680501238,7.71974072,2113.1,2112.2,7.67474293]
[1770680501542,7.71974072,2113.2,2112.3,7.67474293]
[1770680501737,7.71974072,2113.0,2112.3,7.68041082]
[1770680502847,7.71974072,2113.1,2112.3,7.68041082]
[1770680505248,7.72321762,2113.3,2112.3,7.68041082]
[1770680505449,12.02153849,2113.2,2112.3,7.68041082]
[1770680505747,0.0034769,2113.3,2112.3,7.68041082]
[1770680505948,7.72321762,2113.3,2112.3,7.68041082]
[1770680506350,7.71974072,2113.1,2112.3,0.00566789]
[1770680506550,7.71974072,2113.1,2111.6,7.67474293]
[1770680506551,7.71974072,2112.9,2111.6,7.67474293]
[1770680506752,7.71974072,2112.7,2111.6,7.67474293]
[1770680507552,7.71974072,2112.7,2111.6,7.68028661]
[1770680509053,2.69259288,2112.8,2111.6,7.68028661]
[1770680509054,10.4123336,2112.5,2111.6,0.00554368]
[1770680509252,7.71974072,2112.3,2111.6,0.00554368]
[1770680509453,7.86060407,2112.1,2111.6,0.00554368]
[1770680510947,7.86060407,2112.4,2111.6,7.85227013]
[1770680511151,7.86060407,2112.2,2111.6,7.85227013]
[1770680517157,7.86060407,2112.6,2111.6,10.54486301]
[1770680517456,7.86060407,2112.6,2111.7,7.84672645]
[1770680521858,7.86060407,2112.9,2111.7,7.84672645]
[1770680522059,7.86060407,2112.7,2111.7,7.84672645]
[1770680534263,4.29944614,2112.6,2111.7,7.84672645]
[1770680534568,7.86060407,2112.5,2111.7,7.84672645]
[1770680537470,7.86060407,2112.5,2111.6,7.85227013]
[1770680537669,4.30314413,2112.4,2111.6,7.85227013]
[1770680537970,7.86060407,2112.3,2111.6,7.85227013]
[1770680541771,11.02653119,2112.5,2111.6,7.85227013]
[1770680541974,8.19421919,2112.3,2111.6,7.85227013]
[1770680545171,8.19421919,2112.1,2111.6,0.00554368]
[1770680545475,8.19421919,2112.1,2111.6,8.53708514]
[1770680547778,8.19421919,2112.1,2111.6,0.00554368]
[1770680547974,8.19421919,2111.9,2111.0,8.53154146]
[1770680548879,8.19421919,2111.9,2111.0,8.53760095]
[1770680549784,8.19421919,2111.4,2110.5,8.53154146]
[1770680549980,8.19421919,2111.2,2110.5,8.53154146]
[1770680550183,8.19421919,2111.2,2110.5,8.80361718]
[1770680550585,8.19956522,2111.2,2110.5,8.80768453]
[1770680551378,8.19956522,2111.2,2110.5,0.00406735]
[1770680551578,8.19421919,2111.0,2110.2,8.53154146]
[1770680551781,8.19421919,2111.0,2110.2,8.51051364]
[1770680552689,8.19421919,2111.0,2110.2,8.51551688]
[1770680553284,8.19421919,2111.0,2110.2,0.00500324]
[1770680553882,8.19421919,2110.8,2110.2,0.00500324]
[1770680554091,8.19421919,2110.8,2109.8,8.80340966]
[1770680555181,8.19421919,2110.8,2109.8,8.80677538]
[1770680555990,8.19421919,2111.0,2109.9,8.76866146]
[1770680556488,8.19956522,2111.2,2110.2,8.53154146]
[1770680558890,8.19421919,2111.7,2110.4,8.53154146]
[1770680559089,8.19421919,2111.9,2110.5,8.76859146]
[1770680559993,8.19947094,2111.9,2110.5,8.76859146]
[1770680566597,8.19421919,2111.7,2110.5,8.53154146]
[1770680566800,8.19421919,2111.5,2110.5,8.53154146]
[1770680570996,8.00458445,2111.3,2110.1,8.25165972]
[1770680571196,8.00458445,2111.1,2110.1,8.25165972]
[1770680576304,8.00458445,2110.9,2110.1,8.25165972]
[1770680578410,8.00458445,2111.1,2110.1,8.25165972]
[1770680580007,8.00458445,2111.3,2110.1,8.25165972]
[1770680580309,8.00458445,2111.5,2110.3,8.25165972]
[1770680582702,8.00458445,2111.8,2110.5,8.25165972]
[1770680582904,8.00458445,2111.6,2110.5,8.25165972]
[1770680586509,8.00458445,2111.4,2110.5,8.25165972]
[1770680589022,8.00458445,2111.6,2110.5,8.25165972]
[1770680589216,4.30550428,2111.5,2110.5,8.25165972]
[1770680589418,8.00458445,2111.6,2110.5,8.25165972]
[1770680589619,4.30584598,2111.5,2110.5,8.25165972]
[1770680589817,8.00458445,2111.6,2110.5,8.25165972]
[1770680590007,12.31043081,2111.5,2110.5,8.25165972]
[1770680590211,8.00458445,2111.5,2110.5,8.25165972]
[1770680593013,8.00458445,2111.7,2110.5,8.25165972]
[1770680593218,4.3073419,2111.6,2110.5,8.25165972]
[1770680593414,8.00458445,2111.7,2110.5,8.25165972]
[1770680593623,4.30736952,2111.6,2110.5,8.25165972]
[1770680593922,8.00458445,2111.7,2110.5,8.25165972]
[1770680597523,0.00525175,2111.9,2110.9,8.25165972]
[1770680597723,8.0098362,2111.9,2110.9,8.25165972]
[1770680598618,8.00458445,2111.7,2110.9,8.25165972]
[1770680604925,7.9579611,2111.9,2111.0,7.99792254]
[1770680605619,7.95270935,2111.7,2111.0,7.99792254]
[1770680613724,7.9579611,2111.9,2111.0,7.99792254]
[1770680613923,7.95270935,2111.7,2111.0,7.99792254]
[1770680614837,7.95270935,2111.7,2111.2,7.99792254]
[1770680615335,7.95270935,2111.8,2111.2,7.99792254]
[1770680615637,7.9579611,2111.9,2111.4,7.99792254]
[1770680615824,7.9579611,2111.9,2111.4,8.00129883]
[1770680616730,0.00525175,2111.9,2111.4,8.00129883]
[1770680616931,7.9579611,2111.9,2111.4,8.00129883]
[1770680617433,0.00525175,2111.9,2111.4,8.00129883]
[1770680620737,7.9579611,2111.9,2111.4,8.00129883]
[1770680622131,0.00525175,2111.9,2111.4,8.00129883]
[1770680624135,7.9579611,2111.9,2111.4,8.00129883]
[1770680624336,0.00525175,2111.9,2111.4,8.00129883]
[1770680626035,0.00525175,2111.9,2111.5,1.87000926]
[1770680626237,10.77913527,2112.3,2111.6,7.99792254]
[1770680626435,4.30832657,2112.2,2111.6,7.99792254]
[1770680626736,12.26103592,2112.1,2111.6,7.99792254]
[1770680626938,3.24913204,2112.1,2111.6,7.99792254]
[1770680627134,0.00463731,2112.1,2111.6,7.99792254]
[1770680632139,5.39336072,2112.1,2111.4,8.38404225]
[1770680634540,0.00463731,2112.1,2111.4,8.38404225]
[1770680636443,0.00463731,2112.1,2111.4,10.25405151]
[1770680637942,10.05371817,2112.7,2112.1,8.38066596]
[1770680638143,8.18370891,2112.4,2111.9,8.38066596]
[1770680638340,10.05371817,2112.1,2111.6,8.38066596]
[1770680638540,10.05371817,2112.1,2111.4,0.00337629]
[1770680638740,10.05371817,2112.1,2111.5,8.38066596]
[1770680639046,10.05945872,2112.1,2111.5,8.38066596]
[1770680644240,4.26093699,2112.0,2111.5,8.38066596]
[1770680644441,9.85664764,2111.9,2111.4,8.38404225]
[1770680644749,9.85664764,2111.9,2111.4,0.00337629]
[1770680645051,9.85664764,2111.9,2111.4,8.38404225]
[1770680645466,4.26234376,2111.8,2111.4,0.00337629]
[1770680645649,7.92878185,2111.7,2111.4,0.00337629]
[1770680646050,7.92878185,2111.7,2111.4,8.38404225]
[1770680646242,7.92878185,2111.7,2111.4,0.00337629]
[1770680646647,8.55508462,2111.8,2111.4,8.38404225]
[1770680651857,0.00574055,2112.1,2111.4,8.38404225]
[1770680652058,4.26412791,2112.0,2111.4,8.38404225]
[1770680652355,8.14440175,2112.1,2111.4,8.38404225]
[1770680652560,12.38049673,2112.0,2111.4,8.38404225]
[1770680652754,8.11664833,2112.0,2111.4,8.38404225]
[1770680653059,9.98665759,2112.0,2111.4,0.00337629]
[1770680653255,8.06877793,2111.8,2111.4,0.00337629]
[1770680654763,8.06877793,2111.8,2111.4,8.38404225]
[1770680656363,0.00574055,2112.1,2111.5,8.38066596]
[1770680656565,7.93440233,2112.1,2111.8,8.38066596]
[1770680657672,7.93440233,2112.1,2111.5,8.38066596]
[1770680657866,7.93440233,2112.1,2111.4,8.38404225]
[1770680659973,7.72815151,2111.6,2110.7,8.12932468]
[1770680660170,7.72815151,2111.4,2110.7,8.12932468]
[1770680660366,7.72815151,2111.2,2110.7,8.12932468]
[1770680661066,7.72815151,2111.2,2110.7,8.13521354]
[1770680661364,7.7163857,2111.6,2110.7,8.13521354]
[1770680661569,7.7163857,2111.4,2110.7,8.13521354]
[1770680662267,7.67422596,2111.6,2110.7,8.13521354]
[1770680675585,6.92899794,2111.9,2110.7,8.13521354]
[1770680675789,6.92899794,2111.7,2110.7,8.13521354]
[1770680676191,6.89313404,2112.0,2110.7,8.13521354]
[1770680676881,0.00574055,2112.1,2110.7,8.13521354]
[1770680676882,6.85313896,2111.8,2110.7,8.13521354]
[1770680677288,6.85313896,2111.8,2110.8,8.22761119]
[1770680685300,6.51334625,2111.9,2110.8,8.22761119]
[1770680685593,6.51334625,2112.0,2110.8,8.22761119]
[1770680685792,6.51334625,2111.8,2110.8,8.22761119]
[1770680690598,4.24178343,2111.7,2110.8,8.22761119]
[1770680690799,42.29842661,2112.0,2110.8,8.22761119]
[1770680691002,5.64452631,2112.1,2110.8,8.22761119]
[1770680691003,7.52567215,2112.1,2111.0,7.4282859]
[1770680692005,7.52567215,2112.1,2111.2,7.4282859]
[1770680692710,7.52567215,2112.1,2111.1,7.4282859]
[1770680699318,7.5199316,2112.0,2111.1,7.4282859]
[1770680700421,7.5199316,2111.9,2111.1,7.4282859]
[1770680701329,7.5199316,2111.8,2111.1,7.4282859]
[1770680701710,7.5199316,2111.8,2110.7,30.63688886]
[1770680701711,7.5199316,2111.7,2110.9,7.4282859]
[1770680701911,7.5199316,2111.7,2110.7,38.06517476]
[1770680701912,7.5199316,2111.6,2110.7,38.06517476]
[1770680702116,7.5199316,2111.6,2110.8,7.4282859]
[1770680702918,7.5199316,2111.4,2110.8,7.4282859]
[1770680703120,7.5199316,2111.4,2110.7,7.43417476]
[1770680703323,7.5199316,2111.2,2110.3,7.4282859]
[1770680703518,7.5199316,2111.0,2110.3,7.4282859]
[1770680703721,7.5199316,2110.8,2110.1,7.4282859]
[1770680704326,7.5199316,2110.8,2110.1,7.43243453]
[1770680704627,7.5199316,2110.6,2109.8,7.7001541]
[1770680705120,7.5199316,2110.8,2110.0,7.4282859]
[1770680705423,7.5199316,2111.2,2110.3,7.4282859]
[1770680705619,0.00421937,2110.8,2110.3,7.4282859]
[1770680707322,7.5199316,2111.6,2110.3,7.4282859]
[1770680707527,7.5199316,2111.4,2110.6,7.4282859]
[1770680708224,7.5199316,2111.7,2110.6,7.4282859]
[1770680708421,0.0037878,2111.4,2110.6,7.4282859]
[1770680708620,7.5237194,2111.4,2110.6,7.4282859]
[1770680709728,7.5199316,2111.2,2110.2,7.4282859]
[1770680722039,6.82306675,2111.4,2110.5,6.94606254]
[1770680722943,0.0037878,2111.4,2110.5,6.94606254]
[1770680727848,0.0037878,2111.4,2110.8,6.94606254]
[1770680730856,0.0037878,2111.4,2111.1,6.94606254]
[1770680731147,6.81927895,2111.8,2111.1,6.94606254]
[1770680731348,6.81927895,2112.0,2111.3,6.94606254]
[1770680731752,6.81927895,2111.9,2111.1,6.94606254]
[1770680732454,6.82526231,2111.9,2111.1,6.94606254]
[1770680735055,6.81927895,2112.1,2111.6,6.94606254]
[1770680736055,6.81927895,2112.1,2111.0,1.87060808]
[1770680736056,6.81927895,2112.1,2111.4,6.94606254]
[1770680736250,6.82494004,2112.1,2111.5,0.00497132]
[1770680736450,6.82494004,2112.1,2111.5,6.95103386]
[1770680739457,6.81927895,2111.6,2111.1,6.94606254]
[1770680740358,6.81927895,2111.6,2111.3,6.94606254]
[1770680740559,6.81927895,2112.0,2111.3,6.94606254]
[1770680741851,6.81927895,2111.9,2111.3,6.94606254]
[1770680744160,6.81927895,2111.9,2111.1,6.95032029]
[1770680752260,6.23516647,2111.7,2111.1,6.95032029]
[1770680753467,1.87054288,2112.0,2111.1,6.95032029]
[1770680753774,6.23516647,2111.8,2111.1,6.95032029]
[1770680757778,6.23516647,2111.8,2111.1,0.00425775]
[1770680757779,8.10570935,2111.8,2111.1,0.00425775]
[1770680757981,6.23516647,2111.6,2111.1,0.00425775]
[1770680758675,8.10570935,2111.6,2111.1,0.00425775]
[1770680758866,6.23516647,2111.3,2110.8,6.26069142]
[1770680759073,6.23516647,2111.1,2110.6,6.26069142]
[1770680759381,6.23516647,2110.9,2110.4,6.26069142]
[1770680759568,6.23516647,2110.9,2110.2,6.26069142]
[1770680759876,6.23516647,2110.7,2110.2,6.2663178]
[1770680760071,6.23516647,2110.7,2109.9,1.87054288]
[1770680760072,6.23516647,2110.3,2109.6,11.93528051]
[1770680760270,2.82733879,2110.6,2110.1,1.87054288]
[1770680760574,4.20684971,2110.5,2110.2,6.26069142]
[1770680760777,6.23516647,2111.1,2110.4,6.26069142]
[1770680760978,6.23516647,2110.5,2110.0,6.26069142]
[1770680761180,6.23896584,2110.5,2110.0,6.26485582]
[1770680761477,6.23896584,2110.5,2109.1,12.93524688]
[1770680761478,6.23516647,2110.1,2109.7,6.26069142]
[1770680761779,6.23516647,2110.1,2109.4,6.26069142]
[1770680762576,6.23516647,2110.1,2109.4,6.53030005]
[1770680763881,6.23516647,2110.1,2109.4,6.26615065]
[1770680764079,6.23516647,2110.1,2109.4,0.00545923]
[1770680764480,1.87054288,2110.2,2108.5,5.67458909]
[1770680764481,6.23516647,2109.4,2108.5,5.67458909]
[1770680764682,6.23516647,2109.4,2106.8,5.84185]
[1770680764683,1.87054288,2107.9,2106.8,6.50014217]
[1770680764880,1.87054288,2107.4,2106.8,6.77070825]
[1770680765081,1.87054288,2107.4,2106.8,6.50014217]
[1770680765282,5.83779,2108.3,2106.8,6.50014217]
[1770680765283,1.87054288,2108.3,2107.2,6.50123526]
[1770680765578,1.87583321,2108.3,2107.4,6.50123526]
[1770680765980,0.00529033,2108.3,2107.4,6.50123526]
[1770680766580,1.87054288,2108.2,2107.4,6.50123526]
[1770680766782,1.87054288,2108.0,2107.4,6.50123526]
[1770680766983,1.26554646,2108.1,2107.4,6.50123526]
[1770680768886,0.00529033,2108.3,2107.4,6.50123526]
[1770680771281,2.70444496,2109.2,2107.4,6.50123526]
[1770680771681,40.8,2109.1,2107.4,6.50123526]
[1770680771989,2.70444496,2109.2,2107.4,6.50123526]
[1770680772189,2.70996683,2109.2,2107.4,6.50123526]
[1770680772490,40.8,2109.1,2107.4,6.50123526]
[1770680773790,2.70444496,2108.6,2107.4,6.50123526]
[1770680774293,71.461,2109.1,2107.4,6.50123526]
[1770680775084,0.00552187,2109.2,2107.7,6.42125356]
[1770680778392,2.70996683,2109.2,2107.7,6.42125356]
[1770680778588,2.70444496,2108.9,2107.7,6.42125356]
[1770680780095,2.70996683,2109.2,2107.7,6.42125356]
[1770680780996,0.00552187,2109.2,2107.7,6.42125356]
[1770680781591,2.70177812,2109.1,2107.7,6.42125356]
[1770680782192,0.23722,2109.0,2107.7,6.42125356]
[1770680787202,4.59983449,2108.9,2107.7,6.42125356]
[1770680787501,4.6007529,2108.8,2107.7,6.42125356]
[1770680787700,3.06455879,2109.0,2107.7,6.42125356]
[1770680787898,4.60074904,2108.9,2107.7,6.42125356]
[1770680788205,4.6007484,2108.8,2107.7,6.42125356]
[1770680788404,4.6007484,2108.7,2107.7,6.42125356]
[1770680788605,2.78919005,2108.9,2107.7,6.42125356]
[1770680789000,0.00552187,2109.2,2108.3,5.64576337]
[1770680790805,0.00344261,2109.9,2108.8,5.40846337]
[1770680791105,0.00344261,2109.9,2108.8,5.41460027]
[1770680791810,5.60553292,2111.1,2109.0,5.40846337]
[1770680792109,4.35388861,2111.0,2109.0,5.40846337]
[1770680792804,4.33636892,2110.8,2109.0,5.40846337]
[1770680793015,4.33636892,2110.6,2109.0,5.40846337]
[1770680796117,4.33636892,2110.6,2109.2,5.40846337]
[1770680796311,4.21455452,2110.9,2109.2,5.40846337]
[1770680796914,4.21455452,2110.9,2109.3,5.40846337]
[1770680801214,0.00448527,2111.0,2108.5,12.88894522]
[1770680801215,3.95702804,2110.2,2108.5,7.05185522]
[1770680801422,0.27043929,2109.6,2108.1,5.40846337]
[1770680801717,0.27043929,2109.0,2107.1,5.40846337]
[1770680802413,0.2552468,2108.8,2107.1,5.41373173]
[1770680810422,0.00615009,2109.0,2106.8,4.86954364]
[1770680810423,1.21860955,2107.8,2106.8,4.86954364]
[1770680810618,1.21860955,2107.8,2105.9,0.23757]
[1770680810924,5.26782432,2107.6,2106.0,4.86954364]
[1770680811419,5.26782432,2107.6,2106.0,4.87405604]
[1770680811615,5.26782432,2107.6,2106.0,5.12418551]
[1770680818018,5.26782432,2107.6,2106.2,4.86954364]
[1770680818325,5.26782432,2107.9,2106.8,4.86954364]
[1770680820325,40.8,2108.7,2106.8,4.86954364]
[1770680820326,5.26782432,2108.6,2106.8,4.86954364]
[1770680821223,5.26782432,2108.6,2107.0,4.86954364]
[1770680829434,5.26782432,2108.4,2107.0,4.86954364]
[1770680830438,5.26782432,2108.2,2107.0,4.86954364]
[1770680830936,5.26782432,2108.0,2107.0,4.86954364]